[Event "13th KIIT Festival-A 2022"]
[Site "Bhubaneswar"]
[Date "2022.05.24"]
[Round "4.2"]
[White "Fedorov, Alexei"]
[Black "Azaladze, Shota"]
[Result "0-1"]
[ECO "A48"]
[WhiteElo "2529"]
[BlackElo "2420"]
[Annotator "TA"]
[PlyCount "56"]
[EventDate "2022.05.15"]
[EventType "swiss"]
[EventCountry "IND"]
[SourceTitle "playchess.com"]
[Source "ChessBase"]
[SourceQuality "1"]
[TimeControl "5400+30"]

{[%evp 11,56,13,14,10,33,2,2,-20,23,4,2,8,31,24,37,27,77,20,31,17,16,0,7,-30,-27,-104,-85,-95,-48,-56,-62,-120,-17,-249,-179,-230,-227,-229,-236,-461,-458,-536,-531,-598,-591,-558,-523]} 1. e4 {[%emt 0:00:04]} g6 {[%emt 0:00:08]} 2. d4 {[%emt 0:00:14]} Bg7 {[%emt 0:00:05]} 3. c3 {[%emt 0:00:05]} d6 {[%emt 0:00:15]} 4. Bg5 {[%emt 0:00:58][%cal Bc1g5,Bg5h4,Bh4g3,Bg3f4][%mdl 32]} Nd7 {[%emt 0:00:37]} 5. Nd2 {[%emt 0:00:38]} Ngf6 {[%emt 0:00:50]} 6. Ngf3 {[%emt 0:00:11]} h6 {[%emt 0:02:36]} 7. Bh4 {[%emt 0:00:09] A48: 1 d4 Nf6 2 Nf3 g6: Torre, London and Colle Systems.} e5 {[%emt 0:02:06]} 8. dxe5 {[%emt 0:01:15]} dxe5 {[%emt 0:00:26]} 9. Be2 {[%emt 0:03:39] The position is equal.} Qe7 {[%emt 0:02:12]} 10. O-O {[%emt 0:02:00] [#]} g5 $146 {[%emt 0:03:10]} ({Predecessor:} 10... O-O 11. Qc2 Re8 12. Nc4 Qf8 13. Ne3 c6 14. Nd2 Nc5 15. Rfd1 Ne6 16. Ndc4 Nf4 17. Bf1 Ng4 18. Nd6 g5 19. Nxe8 Qxe8 {1-0 (49) Paehtz,E (2456)-Linares Napoles,O (2255) Chess.com INT 2021}) 11. Bg3 {[%emt 0:00:05]} h5 {[%emt 0:00:04]} 12. h4 {[%emt 0:05:35]} (12. Nxg5 h4 13. Bc4 hxg3 14. Bxf7+ Kf8 15. fxg3 Bh6 $17) 12... g4 {[%emt 0:00:24]} 13. Ng5 {[%emt 0:00:52]} Ng8 {[%emt 0:05:39]} (13... Bh6 $11) 14. Bc4 {[%emt 0:05:08]} ({White should try} 14. f4 $1 $16 {[%cal Rf4e5]}) 14... Nh6 $11 {[%emt 0:05:55]} 15. f4 {[%emt 0:08:33]} exf4 {[%emt 0:17:06]} 16. Bxf4 {[%emt 0:01:25]} O-O $1 {[%emt 0:00:33]} 17. e5 {[%emt 0:28:12]} Nxe5 {[%emt 0:02:46][%cal Bd7e5,Be5g6,Bg6f4][%mdl 32] White must now prevent ...Qc5+.} 18. Qb3 {[%emt 0:05:18] [#]} (18. Bb3 $11 {remains equal.}) 18... Qc5+ $1 $17 {[%emt 0:03:20]} 19. Kh1 {[%emt 0:00:44][%cal Og5f7]} Bf5 {[%emt 0:00:31]} (19... Nxc4 $17 20. Nxc4 (20. Qxc4 Qxc4 21. Nxc4 Re8 $17) 20... Bf5) 20. Bd5 $1 $15 {[%emt 0:05:32] Hoping for Bxe5.} (20. Bxe5 Qxe5 21. Qxb7 Rab8 $17) 20... Rad8 $36 {[%emt 0:05:10][%mdl 2048] Black has good play.} 21. c4 {[%emt 0:03:31]} (21. Bxb7 $15 Qb6 22. Nge4) 21... c6 {[%emt 0:07:19]} ({Black should play} 21... Qb6 $17 {And now ...Nd3 would win.} 22. Nge4 Bg6) 22. Be4 {[%emt 0:07:30] Now White is beyond hope.} (22. Nge4 $1 $11 {and White is okay.} Bxe4 23. Nxe4) 22... Ng6 {[%emt 0:03:49]} 23. Bxf5 {[%emt 0:05:15]} (23. Be3 $142 Qe5 24. Rae1) 23... Nxf4 $19 {[%emt 0:06:30]} ({Inferior is} 23... Nxf5 24. Nge4 Qd4 25. Bg5 Ngxh4 26. Rae1 (26. Bxd8 $2 Qxd8 27. g3 Nd4 $19)) ({Weaker is} 23... Qxf5 {[#]} 24. Bd6 $1 Rxd6 25. Rxf5 Nxf5 26. Nde4 $11) 24. Bh7+ {[%emt 0:02:05]} Kh8 {[%emt 0:00:07]} 25. Qc2 $2 {[%emt 0:05:47]} (25. Nde4 {was worth a try.} Qe5 26. Rae1) 25... Qe3 {[%emt 0:01:54] Black is clearly winning.} 26. Nde4 {[%emt 0:02:55]} f5 {[%emt 0:00:52]} 27. Qf2 {[%emt 0:03:05]} Qxf2 {[%emt 0:00:38]} 28. Nxf2 {[%emt 0:00:03]} Nf7 {[%emt 0:02:25] Weighted Error Value: White=0.58/Black=0.19 (very precise)} 0-1

[Event "13th KIIT Festival-A 2022"]
[Site "Bhubaneswar"]
[Date "2022.05.24"]
[Round "4.3"]
[White "Audi Ameya"]
[Black "Savchenko, Boris"]
[Result "1/2-1/2"]
[ECO "B84"]
[WhiteElo "2389"]
[BlackElo "2524"]
[Annotator "TA"]
[PlyCount "138"]
[EventDate "2022.05.15"]
[EventType "swiss"]
[EventCountry "IND"]
[SourceTitle "playchess.com"]
[Source "ChessBase"]
[SourceQuality "1"]
[TimeControl "5400+30"]

{[%evp 28,138,13,0,18,0,47,34,56,54,106,106,105,101,110,120,131,127,226,155,154,140,168,181,143,63,53,55,50,44,65,77,61,12,45,0,0,0,0,0,0,11,6,0,22,0,0,0,0,0,0,0,0,0,0,0,0,0,0,0,0,0,101,96,89,0,0,0,0,0,0,0,111,93,150,90,70,46,60,12,177,0,0,0,0,0,0,0,0,-8,2660,2660,29970,29971,29971,29966,29989,-8,-8,-8,-8,-8,-8,-8,-8,-8,-8,-8,-8,-8,-8,-8,-8]} 1. e4 {[%emt 0:00:08]} c5 {[%emt 0:00:12]} 2. Nf3 {[%emt 0:00:02]} d6 {[%emt 0:00:11]} 3. d4 {[%emt 0:00:02]} cxd4 {[%emt 0:00:07]} 4. Nxd4 {[%emt 0:00:03]} Nf6 {[%emt 0:00:07]} 5. Nc3 {[%emt 0:00:02]} a6 {[%emt 0:00:07]} 6. Be3 {[%emt 0:00:04]} Ng4 {[%emt 0:00:13]} 7. Bc1 {[%emt 0:00:04]} Nf6 {[%emt 0:00:04]} 8. Be3 {[%emt 0:00:53]} Ng4 {[%emt 0:00:13]} 9. Bc1 {[%emt 0:00:04]} Nc6 {[%emt 0:00:19]} 10. Be2 {[%emt 0:00:42]} Nf6 {[%emt 0:04:56]} 11. Be3 {[%emt 0:02:13]} e6 {[%emt 0:01:24]} 12. Qd2 {[%emt 0:01:40]} Be7 {[%emt 0:00:19]} 13. O-O-O {[%emt 0:00:43]} O-O {[%emt 0:00:14]} 14. f3 {[%emt 0:23:33]} Nxd4 {[%emt 0:13:40]} 15. Bxd4 {[%emt 0:03:07]} b5 {[%emt 0:01:17] B84: Sicilian Scheveningen: 6 Be2 a6, lines without early Be3.} 16. a3 {[%emt 0:03:51] [#]} Ne8 $146 {[%emt 0:18:10]} (16... Bd7 $11) ({Predecessor:} 16... Bb7 17. g4 Rc8 18. g5 Nd7 19. h4 Ne5 20. Qe3 Qc7 21. Rhg1 Rfe8 22. h5 Bf8 23. h6 g6 24. f4 Nc4 25. Bxc4 Qxc4 26. Bg7 Be7 27. Qb6 {½-½ (41) Svenn,M (2214)-Callergard,R (2317) Sweden 2011}) 17. h4 $14 {[%emt 0:17:36][%cal Bh2h4,Bh4h5,Bh5h6][%mdl 32]} Bd7 {[%emt 0:00:11] White is slightly better.} 18. h5 {[%emt 0:02:42]} Nc7 {[%emt 0:01:16]} (18... h6 $14) 19. h6 $16 {[%emt 0:03:03]} g6 {[%emt 0:00:18]} 20. Bb6 $36 {[%emt 0:00:24][%mdl 2048] White is really pushing.} Qb8 {[%emt 0:04:36]} 21. Ba5 {[%emt 0:00:11]} (21. Qd4 e5 22. Bxc7 Qxc7 $14) 21... Rc8 {[%emt 0:02:04]} 22. f4 {[%emt 0:06:16]} (22. Qd4 e5 23. Qf2 Bc6 $14) 22... d5 {[%emt 0:02:06]} (22... b4 $16 {is a better defense.}) 23. exd5 {[%emt 0:02:13]} (23. Qd4 $6 Ne8 $14) 23... Nxd5 {[%emt 0:00:17]} 24. Nxd5 {[%emt 0:01:07]} (24. Qd4 Bf6 25. Qd2 Bxc3 26. Bxc3 Qxf4 $15) 24... exd5 {[%emt 0:00:06]} 25. Qd4 {[%emt 0:00:20][%csl Gh6][%cal Rd4g7]} (25. Qxd5 Qxf4+ 26. Bd2 (26. Qd2 Qxd2+ 27. Bxd2 Bc6 $11) 26... Qf5 27. Qxf5 Bxf5 $11) 25... Bf8 {[%emt 0:00:06] Against Qg7+} 26. Bc3 {[%emt 0:00:43]} (26. Qxd5 $6 Qxf4+ 27. Qd2 Qxd2+ 28. Rxd2 Bc6 $11) (26. g4 $16) 26... Rxc3 $1 $14 {[%emt 0:00:08]} 27. Qxc3 {[%emt 0:01:21]} Qxf4+ {[%emt 0:03:49]} 28. Qd2 {[%emt 0:00:03]} Qc7 {[%emt 0:00:12]} 29. Qxd5 {[%emt 0:11:53]} Rc8 {[%emt 0:06:37][%csl Gc8][%cal Rc7c2]} 30. c3 {[%emt 0:02:28]} (30. Qd2 $14) 30... Bf5 {[%emt 0:00:23][%cal Of8a3] Threatens to win with ...Bxa3!} 31. Qd4 {[%emt 0:00:48]} Qg3 {[%emt 0:00:56]} 32. Bd3 {[%emt 0:01:47]} Bxh6+ {[%emt 0:01:18]} 33. Kb1 {[%emt 0:00:02]} Bg7 {[%emt 0:03:14]} 34. Qd5 {[%emt 0:00:49]} Be6 {[%emt 0:01:46]} 35. Qb7 {[%emt 0:00:20]} h5 {[%emt 0:05:27][%cal Og7c3]} (35... a5 $5 {[%cal Rb5b4]}) 36. Be4 {[%emt 0:03:49]} (36. Qxa6 Bxc3 37. bxc3 Rxc3 38. Qa8+ Kg7 $17) (36. Bc2 $5 {[%cal Rh1e1]}) 36... Bxc3 {[%emt 0:09:33] This bishop pair is nice.} 37. Rc1 $1 {[%emt 0:02:14][%mdl 64] Pin} (37. bxc3 Rxc3 38. Bc2 (38. Qxa6 Rb3+ 39. Kc1 Qf4+ 40. Rd2 Qxe4) (38. Rd8+ $2 Kg7 $19) 38... Bf5 39. Rd8+ Kg7 $19) (37. Rd3 $2 Qf2 $1 38. Rxc3 Rxc3 39. bxc3 Qa2+ 40. Kc1 Qa1+ 41. Kd2 (41. Bb1 $2 Qxc3+ 42. Bc2 Bf5 $19) 41... Qxh1 $19) 37... Kg7 {[%emt 0:04:28][%cal Oc3b2] ...Bxb2! is the strong threat.} 38. Rxc3 {[%emt 0:00:49]} Rxc3 {[%emt 0:00:07]} 39. bxc3 {[%emt 0:00:02]} Qxc3 {[%emt 0:00:13]} 40. Qc6 {[%emt 0:06:35]} (40. Qxa6 $2 Qb3+ 41. Kc1 Qe3+ 42. Kb2 Qxe4 $19) 40... Qb3+ {[%emt 0:04:03]} (40... Qxa3 41. Qc2 $16) 41. Kc1 {[%emt 0:00:02] Black must now prevent Qc5.} Qxa3+ {[%emt 0:00:55]} 42. Kd2 {[%emt 0:00:26] aiming for Qc3+.} Bc4 {[%emt 0:00:18]} 43. Rb1 {[%emt 0:02:09] Against Qb2+} Qa2+ {[%emt 0:03:24]} 44. Kc3 {[%emt 0:00:26]} a5 {[%emt 0:00:44]} (44... Qe2 $11 {remains equal.} 45. Kb4 Qd2+ 46. Kc5 Qe3+ 47. Kb4 Qd2+ 48. Kc5 Qe3+ 49. Kb4 Qd2+) 45. Qd6 $16 {[%emt 0:02:32]} Kh7 {[%emt 0:02:44]} 46. Qc5 {[%emt 0:01:11] Active counter play!} ({White should play} 46. Rh1 $16 {And now Rxh5+ would win.} Be2 47. Qe5) 46... Qe2 $11 {[%emt 0:00:42]} 47. Qe5 {[%emt 0:01:43]} Qe3+ {[%emt 0:01:21]} 48. Kb2 {[%emt 0:00:07][%cal Oe4g6]} Qe2+ {[%emt 0:02:24]} 49. Kc3 {[%emt 0:00:12]} a4 {[%emt 0:02:48]} (49... f5 $11 {keeps the balance.} 50. Qc7+ Kh6 51. Qf4+ Kh7 52. Qc7+ Kh6 53. Qf4+ Kh7 54. Qc7+) 50. Rh1 $1 $16 {[%emt 0:01:07]} (50. Qd4 $6 a3 $11) 50... Kg8 {[%emt 0:03:03]} (50... Qe3+ $142 51. Kb4 Kg8) 51. Kb4 {[%emt 0:00:02]} (51. Qd4 $142 $1) 51... Qd2+ {[%emt 0:00:43]} 52. Kc5 {[%emt 0:00:02] Strongly threatening Bd5.} a3 $1 {[%emt 0:00:46][%cal Ba4a3,Ba3a2][%mdl 32]} ({Weaker is} 52... Qd8 53. Bd5 $16) 53. g4 {[%emt 0:00:57]} (53. Bd5 $1 $14 Bxd5 54. Qxd5 Qc3+ 55. Kd6 (55. Kxb5 Qb2+ 56. Kc5 a2 $14)) 53... h4 $2 {[%emt 0:00:13] [#]} (53... Qd8 $2 54. gxh5 Qf8+ 55. Kd4 Qd8+ 56. Kc3 Qa5+ 57. Kc2 Qa4+ 58. Kd2 Qb4+ 59. Ke3 $18) (53... Qe3+ $1 $11 {and Black has nothing to worry.} 54. Kc6 Bd3 55. Qe8+ Kg7 56. Qe5+ Kg8 57. Qe8+ Kg7 58. Qe5+ Kg8) 54. g5 $2 {[%emt 0:00:57]} (54. Rh3 $1 $18 {[%cal Rh3a3]} Qf2+ 55. Kb4 (55. Kc6 b4 $11) 55... Qd2+ 56. Kxa3) 54... a2 $11 {[%emt 0:01:56]} 55. Qe8+ {[%emt 0:00:28]} Kg7 {[%emt 0:00:04]} 56. Qe5+ {[%emt 0:00:02]} Kg8 {[%emt 0:00:06]} 57. Kc6 {[%emt 0:00:42] Dancing on a razor blade.} Qd8 {[%emt 0:01:18]} 58. Rxh4 {[%emt 0:00:54][%csl Ge5][%cal Rh4h8]} f6 $2 {[%emt 0:00:24][%mdl 8192]} (58... Qc8+ $11 59. Kb6 Qe6+ 60. Qxe6 Bxe6) 59. gxf6 $18 {[%emt 0:00:09]} Bf7 {[%emt 0:00:31] [#]} 60. Rh1 $1 {[%emt 0:00:31]} Qc8+ {[%emt 0:00:44]} 61. Kb6 {[%emt 0:00:24]} b4 {[%emt 0:00:32]} 62. Qc7 $2 {[%emt 0:01:02]} (62. Bc6 {mates} b3 63. Qh2 Qd8+ 64. Kb7 Qxf6 65. Qb8+ Be8 66. Qxe8+ Kg7 67. Bd5) 62... Qxc7+ $11 {[%emt 0:00:29] The position is equal.} 63. Kxc7 {[%emt 0:00:02]} b3 {[%emt 0:00:07] ( -> ...b2)} 64. Ra1 $1 {[%emt 0:00:32]} b2 {[%emt 0:00:54]} (64... g5 $5 65. Rd1 Bh5 66. Bd5+ Bf7 $11) 65. Rxa2 $1 {[%emt 0:00:03]} Bxa2 {[%emt 0:00:03]} 66. Bxg6 {[%emt 0:00:02]} b1=B {[%emt 0:00:07]} 67. f7+ {[%emt 0:00:13]} Kf8 {[%emt 0:00:06]} 68. Bxb1 {[%emt 0:00:02]} Bxb1 {[%emt 0:00:03]} 69. Kd6 {[%emt 0:00:02]} Kxf7 {[%emt 0:00:05] Weighted Error Value: White=0.15 (very precise) /Black=0.33} 1/2-1/2

[Event "13th KIIT Festival-A 2022"]
[Site "Bhubaneswar"]
[Date "2022.05.24"]
[Round "4.4"]
[White "Konguvel, Ponnuswamy"]
[Black "Aleksandrov, Aleksej"]
[Result "0-1"]
[ECO "C67"]
[WhiteElo "2331"]
[BlackElo "2492"]
[Annotator "TA"]
[PlyCount "60"]
[EventDate "2022.05.15"]
[EventType "swiss"]
[EventCountry "IND"]
[SourceTitle "playchess.com"]
[Source "ChessBase"]
[SourceQuality "1"]
[TimeControl "5400+30"]

{[%evp 25,60,0,31,0,0,0,0,-107,-91,-122,-125,-131,-110,-196,-190,-233,-215,-239,-200,-273,-289,-310,-314,-509,-472,-505,-504,-491,-491,-591,-599,-591,-576,-714,-696,-689,-668]} 1. e4 {[%emt 0:00:05]} e5 {[%emt 0:00:04]} 2. Nf3 {[%emt 0:00:09]} Nc6 {[%emt 0:00:04]} 3. Bb5 {[%emt 0:00:12]} Nf6 {[%emt 0:00:06]} 4. O-O {[%emt 0:00:24]} Nxe4 {[%emt 0:00:04]} 5. d4 {[%emt 0:00:25]} Nd6 {[%emt 0:00:05]} 6. Bxc6 {[%emt 0:00:27]} dxc6 {[%emt 0:00:03]} 7. dxe5 {[%emt 0:00:05]} Nf5 {[%emt 0:00:07]} 8. Qxd8+ {[%emt 0:00:08]} Kxd8 {[%emt 0:00:02]} 9. h3 {[%emt 0:00:27]} Bd7 {[%emt 0:01:16]} 10. Nc3 {[%emt 0:02:02]} h6 {[%emt 0:02:18]} 11. b3 {[%emt 0:04:22]} Kc8 {[%emt 0:03:48]} 12. Bb2 {[%emt 0:03:50]} Ne7 {[%emt 0:02:40]} 13. Rad1 {[%emt 0:09:49]} Ng6 {[%emt 0:00:14]} 14. Ne2 {[%emt 0:14:33] C67: Ruy Lopez: Berlin Defence: 4 0-0 Nxe4.} (14. Rd2 $5 {[%cal Rf1d1]} Be7 15. Rfd1 $14) 14... a5 {[%emt 0:06:35] [#]} 15. Rd2 $146 {[%emt 0:02:33] Hoping for Rfd1.} ({Predecessor:} 15. a4 b6 16. Nd2 h5 17. Ne4 h4 18. Ng5 Be7 19. f4 Rf8 20. Nf3 c5 21. Rxd7 Kxd7 {½-½ (31) Aagaard,J (2449)-Hansen,C (2633) Koge 2005}) 15... Bb4 {[%emt 0:00:24]} 16. Bc3 {[%emt 0:20:20] [#]} (16. c3 $11 Be7 17. Rfd1) 16... c5 $1 $17 {[%emt 0:02:40]} 17. a3 {[%emt 0:10:23]} Bxc3 {[%emt 0:08:15]} 18. Nxc3 {[%emt 0:00:01]} Bc6 {[%emt 0:00:17]} 19. Nd5 {[%emt 0:02:17]} (19. Re1 $17) 19... a4 $19 {[%emt 0:01:21]} 20. b4 {[%emt 0:05:09]} cxb4 {[%emt 0:03:58]} 21. axb4 {[%emt 0:00:03]} Rd8 {[%emt 0:05:42]} 22. c4 {[%emt 0:00:18]} b5 {[%emt 0:00:05]} 23. Rfd1 {[%emt 0:00:34][%cal Od5e7]} Kb7 {[%emt 0:00:05]} 24. cxb5 $2 {[%emt 0:07:00]} (24. Nc3 {was worth a try.} Bxf3 25. Rxd8 Bxd1 26. Rxd1) 24... Bxd5 {[%emt 0:01:07] Black is clearly winning.} 25. Rxd5 {[%emt 0:00:04]} Rxd5 {[%emt 0:00:03]} 26. Rxd5 {[%emt 0:00:04] KRN-KRN} a3 {[%emt 0:00:18][%cal Ba4a3,Ba3a2][%mdl 32] [#] White must now prevent ...a2.} 27. Rd1 {[%emt 0:00:21]} a2 {[%emt 0:02:03]} 28. Ra1 {[%emt 0:00:04]} Kb6 {[%emt 0:00:03]} 29. Nd4 {[%emt 0:07:16]} Nxe5 {[%emt 0:02:18]} 30. Kf1 {[%emt 0:00:22]} Nd3 {[%emt 0:00:37] White did not feel at home in the position after the opening.  Weighted Error Value: White=0.66/Black=0.05 (flawless)} 0-1

[Event "13th KIIT Festival-A 2022"]
[Site "Bhubaneswar"]
[Date "2022.05.24"]
[Round "4.5"]
[White "Nikitenko, Mihail"]
[Black "Nitin, S.."]
[Result "0-1"]
[ECO "B90"]
[WhiteElo "2479"]
[BlackElo "2399"]
[Annotator "TA"]
[PlyCount "106"]
[EventDate "2022.05.15"]
[EventType "swiss"]
[EventCountry "IND"]
[SourceTitle "playchess.com"]
[Source "ChessBase"]
[SourceQuality "1"]
[TimeControl "5400+30"]

{[%evp 10,106,16,24,4,22,16,21,5,-10,16,-22,-22,-20,-21,-37,-33,-41,-28,-25,-29,-37,-42,-16,51,45,14,0,17,18,21,10,186,-81,37,0,0,0,0,0,0,0,0,0,0,0,0,0,0,-14,44,37,33,0,199,210,191,72,82,82,35,17,26,14,24,18,43,-87,0,0,151,62,234,214,225,-55,-39,-237,-223,-226,-127,-130,-123,-133,-133,-132,-123,-141,-141,-269,-260,-592,-569,-1535,-1428,-1525,-1264,-1726,-1482]} 1. e4 {[%emt 0:00:06]} c5 {[%emt 0:00:49]} 2. Nf3 {[%emt 0:00:07]} d6 {[%emt 0:00:33]} 3. d4 {[%emt 0:00:05]} cxd4 {[%emt 0:00:05]} 4. Nxd4 {[%emt 0:00:04]} Nf6 {[%emt 0:00:07]} 5. Nc3 {[%emt 0:00:04]} a6 {[%emt 0:00:07]} 6. Nb3 {[%emt 0:00:04]} e6 {[%emt 0:00:44] B90: Sicilian Najdorf: Unusual White 6th moves, 6 Be3 Ng4 and 6 Be3 e5.} 7. g4 {[%emt 0:02:17]} b5 {[%emt 0:00:34]} 8. Bg2 {[%emt 0:00:06][%cal Oe4e5]} Bb7 {[%emt 0:00:25] The position is equal.} 9. g5 {[%emt 0:00:06]} Nfd7 {[%emt 0:01:36]} (9... b4 $5 {[%cal Rb4c3]}) 10. Be3 {[%emt 0:00:40]} Nc6 {[%emt 0:00:43][%cal Bb8c6,Bc6e5,Be5c4][%mdl 32]} 11. Qe2 {[%emt 0:00:11]} Nce5 {[%emt 0:04:13]} 12. a3 {[%emt 0:00:27] [#]} Nc4 $146 {[%emt 0:01:05]} ({Predecessor:} 12... Be7 13. O-O-O Nc4 14. f4 Rc8 15. Rd3 Nxe3 16. Qxe3 Ne5 17. Rdd1 Nc4 18. Qh3 O-O {1-0 (32) Nikitenko,M (2479)-Sychev,K (2537) Sochi 2022}) 13. O-O-O {[%emt 0:01:17]} Rc8 {[%emt 0:02:04][%cal Oc4a3]} 14. f4 {[%emt 0:03:27] [#]} Nxa3 $1 {[%emt 0:16:15]} 15. bxa3 {[%emt 0:00:06]} Rxc3 {[%emt 0:00:06]} 16. Bd2 {[%emt 0:00:08]} Rc8 {[%emt 0:01:29]} (16... Rc4 $11) 17. Ba5 $14 {[%emt 0:07:34]} Qe7 {[%emt 0:00:48]} 18. Rd3 {[%emt 0:01:08]} e5 {[%emt 0:10:19]} 19. Rhd1 $1 {[%emt 0:02:01] Black should prevent Bh3.} exf4 {[%emt 0:02:54] ...Ne5 is the strong threat.} 20. Bh3 {[%emt 0:01:27]} Qxg5 $2 {[%emt 0:20:42]} (20... Rc4 $1 $11 {and Black stays safe.} 21. Rxd6 Qxd6 22. Rxd6 Bxd6) 21. Qd2 $2 {[%emt 0:01:08]} ({White has to play} 21. Bxd7+ $18 Kxd7 22. Qf2 f3+ 23. Kb1) 21... Qh6 {[%emt 0:05:12]} (21... Bxe4 $2 22. Bxd7+ Kxd7 23. Rxd6+ Ke7 24. Bd8+ Rxd8 25. Rxd8 $18) (21... Ne5 $17 22. Rxd6 Bxd6 23. Qxd6 f3+ 24. Kb1 Qe7 $1 25. Bxc8 Qxd6 26. Rxd6 Ke7 27. Bxb7 Kxd6) 22. Bb4 {[%emt 0:03:14]} (22. Kb1 $5 {[%cal Rd2f2]} f3 23. Qxh6 gxh6 24. Rxf3 $17) 22... Ne5 {[%emt 0:06:51]} 23. Bxc8 {[%emt 0:00:21]} Bxc8 {[%emt 0:00:47]} (23... Nxd3+ 24. Qxd3 Bxc8 25. e5 $15) 24. Rc3 {[%emt 0:01:38]} Nc4 {[%emt 0:02:09]} 25. Qd5 {[%emt 0:00:23]} Qe6 {[%emt 0:06:00]} (25... Qxh2 $2 26. Qa8 f6 27. Qxc8+ Kf7 28. Qd7+ Be7 29. Nd4 $18) 26. Na5 {[%emt 0:01:45]} ({Much weaker is} 26. Qc6+ Qd7 27. Qxd7+ Bxd7 $15) 26... Be7 {[%emt 0:03:22]} 27. Nxc4 {[%emt 0:05:04]} bxc4 {[%emt 0:00:10]} 28. Qc6+ {[%emt 0:00:36]} Bd7 {[%emt 0:01:13]} 29. Qxc4 {[%emt 0:01:46]} O-O {[%emt 0:01:07]} (29... Qxc4 $11 30. Rxc4 Bg4) 30. Qxe6 {[%emt 0:00:03]} Bxe6 {[%emt 0:01:21]} 31. e5 {[%emt 0:00:06]} g5 $2 {[%emt 0:01:04]} (31... Bg5 $11 {and Black is okay.}) 32. exd6 $18 {[%emt 0:00:46]} Bf6 {[%emt 0:00:07] [#]} 33. Rcd3 {[%emt 0:01:10]} (33. d7 $1 $18 Bxd7 34. Rxd7 Bxc3 35. Bxc3) 33... Bd7 $16 {[%emt 0:00:35]} 34. Bc3 {[%emt 0:01:42]} Bd8 {[%emt 0:00:47]} 35. Rd5 {[%emt 0:01:31]} f5 {[%emt 0:00:15]} 36. Ba5 $36 {[%emt 0:02:46][%mdl 2048] White has good play.} Bf6 {[%emt 0:02:41]} 37. Rc5 {[%emt 0:00:04]} f3 {[%emt 0:00:37][%cal Bf4f3,Bf3f2][%mdl 32]} 38. c4 {[%emt 0:01:06]} (38. Rc7 $14 {stays ahead.} Rf7 39. Bb6) 38... f4 {[%emt 0:01:08]} (38... g4 $17) 39. Rc7 {[%emt 0:01:36]} Bh3 {[%emt 0:00:13]} (39... Ba4 $11 40. d7 g4) 40. Be1 $1 {[%emt 0:00:10] Black must now prevent d7.} Rb8 $2 {[%emt 0:02:55]} (40... Bd8 $1 $14) 41. d7 $1 $18 {[%emt 0:05:46] aiming for Bf2.} Bf5 {[%emt 0:02:40] [#] ( -> ...Rb1+)} ({Less strong is} 41... Bb2+ 42. Kc2 Bf6 43. Rd5) 42. Bb4 $2 {[%emt 0:00:06]} ({Better is} 42. Rd3 $1 $18 {[%mdl 512]}) 42... f2 $1 $15 {[%emt 0:00:33] Threatens to win with ...g4.} 43. Rc5 $2 {[%emt 0:06:42] [#]} (43. Rf1 $1 $15 a5 44. Rc8+ Rxc8 45. dxc8=B Bxc8 46. Bc5) 43... Bxd7 $1 $19 {[%emt 0:00:12][%mdl 512]} 44. Rf1 {[%emt 0:00:19]} h6 {[%emt 0:03:12]} (44... Bd4 $1 $19 45. Rxg5+ Kf7) 45. Rd5 $17 {[%emt 0:00:40] [#]} ({But not} 45. Rc7 $2 Bf5 46. Rc5 Bd3 47. Rxf2 Bd4 $19) 45... Be6 {[%emt 0:00:09]} 46. Rd6 {[%emt 0:00:03]} Bxc4 {[%emt 0:01:11] Black is more active.} 47. Rxf2 {[%emt 0:00:02] [#]} Kf7 {[%emt 0:00:14]} 48. Rc2 {[%emt 0:00:05]} Rc8 {[%emt 0:00:02]} 49. Bc3 {[%emt 0:02:16]} (49. Rb6 $17) 49... Be7 $19 {[%emt 0:00:09] A strong pair of Bishops.} 50. Rxh6 {[%emt 0:00:49]} (50. Rd7 {is more resistant.} Be6 51. Ra7) 50... Bd3 {[%emt 0:00:09] Black is clearly winning.} 51. Kd2 {[%emt 0:01:08]} Bxc2 {[%emt 0:00:06]} 52. Kxc2 {[%emt 0:00:01]} f3 {[%emt 0:00:13]} 53. Rh7+ {[%emt 0:01:03]} Ke6 {[%emt 0:00:19] Weighted Error Value: White=0.59/Black=0.39} 0-1